{"text_format":"1","workbook":"xlsx","n_sheets":15,"sheets":["Indice","AÑO 2022","AÑO 2021","AÑO 2020","AÑO 2019","AÑO 2018","AÑO_2017","AÑO_2016","AÑO_2015","AÑO_2014","AÑO_2013","AÑO_2012","AÑO_2011","AÑO_2010","AÑO_2009"],"not_rendered":{"charts":39,"images":3,"macros":0,"external_links":6,"defined_names":6,"comments":0,"pivot_tables":0},"unopened":[],"bounds":{"document_bytes":16777216,"sheet_cells":100000,"rows_first":2000,"rows_last":500,"rows_between":2000,"halvings":0,"cell_chars":16384,"cell_head_chars":4096},"cells_cut":0,"cells_raw":0,"read":"whole","date_system":"1900"}

{"sheet":"Indice","index":0,"n_rows":26,"n_cols":1,"rows_kept":26,"cut":false,"hidden":false,"merged":[[7,0,7,6],[35,0,35,6],[10,0,10,6],[24,0,24,6],[25,0,25,6]]}
[]
[]
[]
["Departamento de Desarrollo Rural y Sostenibilidad"]
[]
[]
["Información Ambiental"]
["Solicitudes de información ambiental recibidas en el Departamento de Desarrollo Rural y Sostenibilidad"]
[]
[]
["Los datos se refieren a las solicitudes de información ambiental realizadas por los ciudadanos conforme a lo establecido en la Ley 27/2006, de 18 de julio, por la que se regulan los derechos de  acceso a la información, participación pública y de acceso a la justicia en materia de medio ambiente y que han sido recibidas por via postal y correo electrónico en el Departamento de Desarrollo Rural y Sostenibilidad\n\nPara el seguimiento y control de estas solicitudes se realiza estas estadísticas que permiten ver su evolución por materias, aspectos ambientales y medio de contacto. El formato y contenido de estas estadísticas ha evolucionado a lo largo del tiempo, adaptándose finalmente a la definición de información ambiental que recoge en el art 2 de Ley 27/2006.\n\nLa información contenida en este archivo es de libre disposición, pero en el caso caso que se utilice esta información para su publicación, en cualquier soporte, deberá citarse el origen de los datos"]
["INDICE"]
["Información desde 2009 a 2022"]
[]
[]
[]
[]
[]
[]
[]
[]
[]
[]
[]
["Publicación: Servicio de Personal, Asuntos Generales e Información. Secretaría General Técnica. Departamento de Desarrollo Rural y Sostenibilidad"]
["Fuente: Departamento de Desarrollo Rural y Sostenibilidad"]

{"sheet":"AÑO 2022","index":1,"n_rows":81,"n_cols":2,"rows_kept":81,"cut":false,"hidden":false,"merged":[[12,0,12,1]]}
[]
[]
[]
["Departamento de Agricultura, Ganadería y Medio ambiente."]
[]
["Información Ambiental"]
[]
["Solicitudes de información ambiental recibidas mediante correo electrónico en ma@aragon.es  "]
["en el Departamento de Agricultura, Ganadería y Medio ambiente.  Año 2022"]
[]
["Número de peticiones de información ambiental recibidas (suma bandeja electrónica,  ma@aragon.es y teléfono"]
[]
["Número de solicitudes de información ambiental por tipo de solicitante"]
[null,"NÚMERO"]
["Administraciones públicas",65]
["Asociaciones y ONGs",53]
["Ciudadanos",247]
["Empresas y profesionales",579]
["Otros",41]
["Total general",985]
[]
[]
[]
[]
[]
[]
[]
[]
[]
[]
[]
[]
[]
[]
[]
[]
[]
[]
[]
["Fuente: Secretaría General Técnica. Departamento de Agricultura, Ganadería y Medio ambiente"]
[]
[]
["Solicitud de información recibida en bandeja de entrada y ma@aragon.es por temáticas. 2022"]
[]
[]
[]
[]
[]
[]
[]
[]
[]
[]
[]
[]
[]
[]
[]
[]
[]
[]
[]
[]
[]
[]
[]
[]
[]
[]
[]
[]
[]
[]
[]
[]
[]
[]
[]
["Fuente: Secretaría General Técnica. Departamento de Agricultura, Ganadería y Medio ambiente"]
[]
["Publicación: Servicio de Personal, Asuntos Generales e Información. Secretaría General Técnica. Departamento de Agricultura, Ganadería y Medio ambiente. "]

{"sheet":"AÑO 2021","index":2,"n_rows":104,"n_cols":5,"rows_kept":104,"cut":false,"hidden":false,"merged":[]}
[]
[]
[]
["Departamento de Agricultura, Ganadería y Medio ambiente."]
[]
["Información Ambiental"]
[]
["Solicitudes de información ambiental recibidas mediante correo electrónico en ma@aragon.es  "]
["en el Departamento de Agricultura, Ganadería y Medio ambiente.  Año 2021"]
[]
["Número de peticiones recibidas por bandeja de entrada electrónica y en la cuenta de correo ma@aragon.es "]
[]
[null,"BANDEJA DE ENTRADA","ma@aragon.es","SUBTOTAL","%"]
["Administración",4,57,{"$f":"+B14+C14","v":61},{"$f":"+D14*100/$D$20","v":8.2880434782608692}]
["Asociación",3,25,{"$f":"+B15+C15","v":28},{"$f":"+D15*100/$D$20","v":3.8043478260869565}]
["Ciudadanía",43,217,260,35.326086956521742]
["Empresas y profesionales",257,108,365,49.592391304347828]
["ONG",19,2,21,2.8532608695652173]
["Sindicato",1,null,1,0.1358695652173913]
["TOTAL",{"$f":"SUM(B14:B19)","v":327},{"$f":"SUM(C14:C19)","v":409},{"$f":"SUM(D14:D19)","v":736},{"$f":"+D20*100/$D$20","v":100}]
[]
[]
[]
[]
[]
[]
[]
[]
[]
[]
[]
[]
[]
[]
[]
[]
[]
[]
[]
[]
[]
[]
["Fuente: Secretaría General Técnica. Departamento de Agricultura, Ganadería y Medio ambiente"]
[]
[]
["Solicitud de información recibida en bandeja de entrada y ma@aragon.es por temáticas. 2021"]
[]
[null,"TEMÁTICA"]
["Agua",7]
["Biodiversidad  (especies catalogadas)",80]
["Calidad del aire",14]
["Cambio climático",4]
["Cartografía flora y fauna",262]
["Caza y pesca",94]
["Climatología",1]
["Educación Ambiental",3]
["Energía",3]
["Gestión forestal",69]
["Incendios forestales",4]
["Información General o administrativa",64]
["Informes sobre ejecución legislación",1]
["Otros",26]
["Publicaciones y materiales",14]
["Red Natural de Aragón",22]
["Residuos",64]
["Ruido",1]
["Suelos",3]
[null,{"$f":"SUM(B49:B67)","v":736}]
[]
[]
[]
[]
[]
[]
[]
[]
[]
[]
[]
[]
[]
[]
[]
[]
[]
[]
[]
[]
[]
[]
[]
[]
[]
[]
[]
[]
[]
[]
[]
[]
[]
["Fuente: Secretaría General Técnica. Departamento de Agricultura, Ganadería y Medio ambiente"]
[]
["Publicación: Servicio de Personal, Asuntos Generales e Información. Secretaría General Técnica. Departamento de Agricultura, Ganadería y Medio ambiente. "]

{"sheet":"AÑO 2020","index":3,"n_rows":59,"n_cols":3,"rows_kept":59,"cut":false,"hidden":false,"merged":[]}
[]
[]
[]
["Departamento de Agricultura, Ganadería y Medio ambiente."]
[]
["Información Ambiental"]
["Solicitudes de información ambiental recibidas mediante correo electrónico en ma@aragon.es  "]
["en el Departamento de Agricultura, Ganadería y Medio ambiente.  Año 2020"]
[]
[" Número de peticiones recibidas en la cuenta de correo ma@aragon.es en 2020"]
[]
[null,"Número de solicitudes","%"]
["Ciudadanos",179,{"$f":"+B13/$B$18","v":0.44750000000000001}]
["Empresas y profesionales",165,{"$f":"+B14/$B$18","v":0.41249999999999998}]
["Administraciones públicas",34,8.5000000000000006E-2]
["Asociaciones y ONGs",21,5.2499999999999998E-2]
["Otros",1,2.5000000000000001E-3]
["TOTAL",{"$f":"SUM(B13:B17)","v":400}]
[]
[]
[]
[]
[]
[]
[]
[]
[]
[]
[]
[]
[]
[]
[]
[]
[]
[]
["Fuente: Secretaría General Técnica. Departamento de Agricultura, Ganadería y Medio ambiente"]
[]
[]
["Solicitudes de información ambiental por temáticas recibidas en ma@aragon.es, 2020"]
[]
[null,"Nº de solicitudes"]
["Agua",6]
["Biodiversidad",96]
["Calidad del aire",3]
["Cambio climático",2]
["Caza y pesca",66]
["Educación ambiental",4]
["Energía",2]
["Gestión Forestal",33]
["Incendios forestales",16]
["Información general o administrativa",37]
["Organismos modificados geneticámente",1]
["Publicaciones y materiales",3]
["Red Natural de Aragón",32]
["Residuos",84]
["Suelos",10]
["Tramites administrativos - Formulario",5]
["TOTAL",400]

{"sheet":"AÑO 2019","index":4,"n_rows":119,"n_cols":4,"rows_kept":119,"cut":false,"hidden":false,"merged":[]}
[]
[]
[]
["Departamento de Agricultura, Ganadería y Medio ambiente."]
[]
["Información Ambiental"]
["Solicitudes de información ambiental recibidas mediante correo postal y electrónico "]
["en el Departamento de Agricultura, Ganadería y Medio ambiente.  Año 2019"]
[]
[]
[" Número de peticiones escritas de información ambiental por tipo de solicitante. Año 2019"]
[]
["Tipo de solicitante","Nº de solicitudes","%"]
["Ciudadanos",5479,{"$f":"+B14/$B$19","v":0.45180176465737609}]
["Empresas/profesionales",4927,{"$f":"+B15/$B$19","v":0.40628349962892718}]
["Administraciones públicas",815,6.7205409417003384E-2]
["Asociaciones/ONG",757,6.2422693164014185E-2]
["Otros",149,1.2286633132679145E-2]
["TOTAL",{"$f":"SUM(B14:B18)","v":12127},{"$f":"SUM(C14:C18)","v":1}]
[]
[]
[]
[]
[]
[]
[]
[]
[]
[]
[]
[]
[]
[]
[]
[]
[]
[]
["Fuente: Secretaría General Técnica. Departamento de Agricultura, Ganadería y Medio ambiente"]
[]
[]
["Medio utilizado","nº de solicitudes"]
["TELÉFONO",7251]
["PRESENCIAL",2293]
["CORREO POSTAL",499]
["EMAIL",1653]
["SEDE ELECTRÓNICA",431]
["TOTAL",{"$f":"SUM(B42:B46)","v":12127}]
[]
[]
[]
[]
[]
[]
[]
[]
[]
[]
[]
[]
[]
[]
[]
[]
[]
[]
["Fuente: Secretaría General Técnica. Departamento de Agricultura, Ganadería y Medio ambiente"]
[]
[]
["Solicitudes de información escrita o en sede electrónica, por temática"]
[]
[null,"EMAIL","POSTAL","SEDE ELECTRÓNICA"]
["Suelo",1,120,3]
["Ruido",1]
["Estado de salud y bienes del patrimonio",1]
["Análisis supuestos económicos",4,1,1]
["Agua",8,2,8]
["Energía",10]
["Atmósfera",32,null,4]
["Informes sobre la ejecución de la legislación",163,85,9]
["Paisajes y espacios naturales",171,39,56]
["Diversidad biológica",359,140,110]
["Radiación o residuos",370,4,91]
["Medidas, normas, planes",533,108,148]
["Sustancias peligrosas",null,null,1]
["TOTAL ",1653,499,431]
[]
[]
[]
[]
[]
[]
[]
[]
[]
[]
[]
[]
[]
[]
[]
[]
[]
[]
[]
[]
[]
[]
[]
[]
[]
[]
[]
[]
[]
[]
[]
["Fuente: Secretaría General Técnica. Departamento de Agricultura, Ganadería y Medio ambiente"]
[]
["Publicación: Servicio de Personal, Asuntos Generales e Información. Secretaría General Técnica. Departamento de Agricultura, Ganadería y Medio ambiente. "]

{"sheet":"AÑO 2018","index":5,"n_rows":129,"n_cols":4,"rows_kept":129,"cut":false,"hidden":false,"merged":[]}
[]
[]
[]
["Departamento de Agricultura, Ganadería y Medio ambiente."]
[]
["Información Ambiental"]
["Solicitudes de información ambiental recibidas mediante correo postal y electrónico "]
["en el Departamento de Agricultura, Ganadería y Medio ambiente.  Año 2018"]
[]
[]
[" Número de peticiones escritas de información ambiental por tipo de solicitante. Año 2018."]
[]
[null,"Tipo de solicitante","Número de solicitudes","%"]
[null,"Administraciones públicas",238,8.5800000000000001E-2]
[null,"Empresas",995,0.35899999999999999]
[null,"Asociaciones",99,3.5700000000000003E-2]
[null,"Ciudadanos",1440,0.51949999999999996]
[null,"Total:",{"$f":"SUM(C14:C17)","v":2772}]
[]
[]
[]
[]
[]
[]
[]
[]
[]
[]
[]
[]
[]
[]
[]
[]
[]
[]
[]
[]
[]
[]
[]
[]
[]
[]
["Número de peticiones escritas de información ambiental por medio de recepción. Año 2018"]
["Fuente: Secretaría General Técnica del Departamento de Agricultura, Ganadería y Medio ambiente. "]
[]
[null,"Correo postal y fax","Correo electrónico y admón. electrónica","Total "]
[null,637,2135,2772]
[]
[]
[]
[]
[]
[]
[]
[]
[]
[]
[]
[]
[]
[]
[]
[]
[]
[]
[]
[]
[]
[]
[]
[]
["Fuente: Secretaría General Técnica del Departamento de Agricultura, Ganadería y Medio ambiente. "]
[]
[]
[" Número de peticiones escritas de información ambiental por área temática. Año 2018"]
[]
["Área temática","Correo postal","Correo electrónico","Total"]
["Agua",7,11,18]
["Atmósfera",0,52,52]
["Diversidad Biológica",152,353,505]
["Organismos modif.genéticamente",0,0,0]
["Energía",0,10,10]
["Paisaje y espacios naturales",85,249,334]
["Residuos",8,586,594]
["Ruido",0,1,1]
["Suelo",170,2,172]
["Sustancias peligrosas",0,0,0]
["Medidas, normas y planes ",135,696,831]
["Informes sobre la ejecución de la legislación",80,171,251]
["Análisis y supuestos económicos",0,3,3]
["Estado de la salud y bienes del patrimonio",0,1,1]
["Total",{"$f":"SUM(B80:B93)","v":637},{"$f":"SUM(C80:C93)","v":2135},{"$f":"SUM(D80:D93)","v":2772}]
[]
[]
[]
[]
[]
[]
[]
[]
[]
[]
[]
[]
[]
[]
[]
[]
[]
[]
[]
[]
[]
[]
[]
[]
[]
[]
[]
[]
[]
[]
[]
[]
["Fuente: Secretaría General Técnica del Departamento de Agricultura, Ganadería y Medio ambiente. "]
[]
["Publicación: Servicio de Personal, Asuntos Generales e Información. Secretaría General Técnica. Departamento de Agricultura, Ganadería y Medio ambiente. "]

{"sheet":"AÑO_2017","index":6,"n_rows":135,"n_cols":5,"rows_kept":135,"cut":false,"hidden":false,"merged":[[7,0,7,6]]}
[]
[]
[]
["Departamento de Desarrollo Rural y Sostenibilidad"]
[]
[]
["Información Ambiental"]
["Solicitudes de información ambiental recibidas mediante correo postal y electrónico en el Departamento de Desarrollo Rural y Sostenibilidad. Año 2017"]
[]
[]
[]
[null,"Solicitudes de información ambiental por tipo de solicitante"]
[]
[null,"Tipo de solicitante","Número de solicitudes","%"]
[null,"Administraciones públicas",281,9.2700000000000005E-2]
[null,"Empresas",1162,0.38319999999999999]
[null,"Asociaciones",174,5.74E-2]
[null,"Ciudadanos",1415,0.4667]
[null,"Total:",{"$f":"SUM(C15:C18)","v":3032}]
[]
[]
[]
[]
[]
[]
[]
[]
[]
[]
[]
[]
[]
[]
[]
[]
[]
[]
[]
[]
[]
[]
[]
[]
[]
[]
[]
[]
[null,"Solicitudes de información ambiental por medio de recepción"]
[]
[null,"Correo postal","Correo electrónico","Total "]
[null,567,2465,3032]
[]
[]
[]
[]
[]
[]
[]
[]
[]
[]
[]
[]
[]
[]
[]
[]
[]
[]
[]
[]
[]
[]
[]
[]
[]
[]
[]
[]
[null,"Solicitudes de información ambiental por área temática"]
[]
[]
[]
[null,"Área temática","Correo postal","Correo electrónico","Total"]
[null,"Agua",2,326,328]
[null,"Atmósfera",7,29,36]
[null,"Diversidad Biológica",87,365,452]
[null,"Organismos modif.genéticamente",0,0,0]
[null,"Energía",0,5,5]
[null,"Paisaje y espacios naturales",96,223,319]
[null,"Residuos",18,689,707]
[null,"Ruido",0,3,3]
[null,"Suelo",270,7,277]
[null,"Sustancias peligrosas",0,8,8]
[null,"Medidas, normas y planes ",79,652,731]
[null,"Informes sobre la ejecución de la legislación",4,156,160]
[null,"Análisis y supuestos económicos",1,2,3]
[null,"Estado de la salud y bienes del patrimonio",3,0,3]
[null,"Total",{"$f":"SUM(C85:C98)","v":567},{"$f":"SUM(D85:D98)","v":2465},{"$f":"SUM(E85:E98)","v":3032}]
[]
[]
[]
[]
[]
[]
[]
[]
[]
[]
[]
[]
[]
[]
[]
[]
[]
[]
[]
[]
[]
[]
[]
[]
[]
[]
[]
[]
[]
[]
[]
[]
[]
[]
[null,"Fuente: Secretaría General Técnica del Departamento de Desarrollo Rural y Sostenibilidad"]
[null,"Publicación: Servicio de Personal, Asuntos Generales e Información. Secretaría General Técnica. Departamento de Desarrollo Rural y Sostenibilidad"]

{"sheet":"AÑO_2016","index":7,"n_rows":99,"n_cols":4,"rows_kept":99,"cut":false,"hidden":false,"merged":[[7,0,7,6],[11,1,11,3],[19,0,19,6],[38,0,38,6]]}
[]
[]
[]
["Departamento de Desarrollo Rural y Sostenibilidad"]
[]
[]
["Información Ambiental"]
["Solicitudes de información ambiental recibidas en el Departamento de Desarrollo Rural y Sostenibilidad. Año 2016"]
[null,null,null,"                                                                                                                                                                                                                                                                                                                                                                                                                                                                                                                                                                                                                                                                                                                                                                                                                                                                                                                                                                                                                                                                                                                                                                                                                                                                                                                                                                                                                                                                                      "]
["Solicitudes de información ambiental"]
[]
[null,"Nº solicitudes"]
["Tipo de solicitante","Total","Correo postal ","Correo electrónico"]
["Administraciones públicas",377,33,344]
["Empresas",1481,130,1351]
["Asociaciones",228,20,208]
["Ciudadanos",1850,162,1688]
["Total",{"$f":"SUM(B14:B17)","v":3936},{"$f":"SUM(C14:C17)","v":345},{"$f":"SUM(D14:D17)","v":3591}]
[]
["Solicitudes de información ambiental por tipo de solicitante"]
[]
[]
[]
[]
[]
[]
[]
[]
[]
[]
[]
[]
[]
[]
[]
[]
[]
[]
["Solicitudes de información ambiental por medio de recepción"]
[]
[]
[]
[]
[]
[]
[]
[]
[]
[]
[]
[]
[]
[]
[]
[]
[]
["Solicitudes de información ambiental por área temática"]
[]
["Área temática","Total","Correo postal ","Correo electrónico"]
["Aguas",{"$f":"SUM(C60:D60)","v":1481},0,1481]
["Atmósfera",{"$f":"SUM(C61:D61)","v":47},3,44]
["Diversidad biológica",393,87,306]
["Energía",3,0,3]
["Espacios naturales",261,68,193]
["Residuos",894,59,835]
["Organismos modificados genéticamente",2,0,2]
["Ruido",2,0,2]
["Suelo",{"$f":"SUM(C68:D68)","v":100},100,0]
["Sustancias peligrosas",{"$f":"SUM(C69:D69)","v":12},2,10]
["Apartado c) y d) art 2.3 Ley 27/2006",741,26,715]
["Total",{"$f":"SUM(B60:B70)","v":3936},{"$f":"SUM(C60:C70)","v":345},{"$f":"SUM(D60:D70)","v":3591}]
[]
[]
[]
[]
[]
[]
[]
[]
[]
[]
[]
[]
[]
[]
[]
[]
[]
[]
[]
[]
[]
[]
[]
[]
[]
[]
["Publicación: Servicio de Personal, Asuntos Generales e Información. Secretaría General Técnica. Departamento de Desarrollo Rural y Sostenibilidad"]
["Fuente: Departamento de Desarrollo Rural y Sostenibilidad"]

{"sheet":"AÑO_2015","index":8,"n_rows":99,"n_cols":4,"rows_kept":99,"cut":false,"hidden":false,"merged":[[7,0,7,6],[11,1,11,3],[19,0,19,6],[38,0,38,6]]}
[]
[]
[]
["Departamento de Desarrollo Rural y Sostenibilidad"]
[]
[]
["Información Ambiental"]
["Solicitudes de información ambiental recibidas en el Departamento de Desarrollo Rural y Sostenibilidad. Año 2015"]
[]
["Solicitudes de información ambiental"]
[]
[null,"Nº solicitudes"]
["Tipo de solicitante","Total","Correo postal y Fax","Correo electrónico"]
["Administraciones públicas",208,61,147]
["Empresas",874,255,619]
["Asociaciones",228,66,162]
["Ciudadanos",999,291,708]
["Total",{"$f":"SUM(B14:B17)","v":2309},{"$f":"SUM(C14:C17)","v":673},{"$f":"SUM(D14:D17)","v":1636}]
[]
["Solicitudes de información ambiental por tipo de solicitante"]
[]
[]
[]
[]
[]
[]
[]
[]
[]
[]
[]
[]
[]
[]
[]
[]
[]
[]
["Solicitudes de información ambiental por medio de recepción"]
[]
[]
[]
[]
[]
[]
[]
[]
[]
[]
[]
[]
[]
[]
[]
[]
[]
["Solicitudes de información ambiental por área temática"]
[]
["Área temática","Total","Correo postal y Fax","Correo electrónico"]
["Aguas",{"$f":"SUM(C60:D60)","v":246},241,5]
["Atmósfera",{"$f":"SUM(C61:D61)","v":58},16,42]
["Diversidad biológica",314,115,199]
["Energía",6,1,5]
["Espacios naturales",425,142,283]
["Residuos",1029,48,981]
["Organismos modificados genéticamente",2,2,0]
["Ruido",3,0,3]
["Suelo",{"$f":"SUM(C68:D68)","v":7},2,5]
["Sustancias peligrosas",{"$f":"SUM(C69:D69)","v":11},2,9]
["Apartado c) y d) art 2.3 Ley 27/2006",208,104,104]
["Total",{"$f":"SUM(B60:B70)","v":2309},{"$f":"SUM(C60:C70)","v":673},{"$f":"SUM(D60:D70)","v":1636}]
[]
[]
[]
[]
[]
[]
[]
[]
[]
[]
[]
[]
[]
[]
[]
[]
[]
[]
[]
[]
[]
[]
[]
[]
[]
[]
["Publicación: Servicio de Personal, Asuntos Generales e Información. Secretaría General Técnica. Departamento de Desarrollo Rural y Sostenibilidad"]
["Fuente: Departamento de Desarrollo Rural y Sostenibilidad"]

{"sheet":"AÑO_2014","index":9,"n_rows":99,"n_cols":4,"rows_kept":99,"cut":false,"hidden":false,"merged":[[7,0,7,6],[11,1,11,3],[19,0,19,6],[38,0,38,6]]}
[]
[]
[]
[]
[]
["Medio Ambiente"]
["Información Ambiental"]
["Solicitudes de información ambiental recibidas en el Departamento de Agricultura, Ganadería y Medio Ambiente. Año 2014"]
[]
["Solicitudes de información ambiental"]
[]
[null,"Nº solicitudes"]
["Tipo de solicitante","Total","Correo postal y Fax","Correo electrónico"]
["Administraciones públicas",{"$f":"SUM(C14:D14)","v":204},113,91]
["Empresas",{"$f":"SUM(C15:D15)","v":238},97,141]
["Asociaciones",{"$f":"SUM(C16:D16)","v":69},38,31]
["Ciudadanos",{"$f":"SUM(C17:D17)","v":424},63,361]
["Total",{"$f":"SUM(B14:B17)","v":935},{"$f":"SUM(C14:C17)","v":311},{"$f":"SUM(D14:D17)","v":624}]
[]
["Solicitudes de información ambiental por tipo de solicitante"]
[]
[]
[]
[]
[]
[]
[]
[]
[]
[]
[]
[]
[]
[]
[]
[]
[]
[]
["Solicitudes de información ambiental por medio de recepción"]
[]
[]
[]
[]
[]
[]
[]
[]
[]
[]
[]
[]
[]
[]
[]
[]
[]
["Solicitudes de información ambiental por área temática"]
[]
["Área temática","Total","Correo postal y Fax","Correo electrónico"]
["Aguas",{"$f":"SUM(C60:D60)","v":264},37,227]
["Atmósfera",{"$f":"SUM(C61:D61)","v":48},14,34]
["Diversidad biológica",185,88,97]
["Energía",12,3,9]
["Espacios naturales",266,111,155]
["Residuos",135,45,90]
["Organismos modificados genéticamente",2,2,0]
["Ruido",2,0,2]
["Suelo",{"$f":"SUM(C68:D68)","v":10},5,5]
["Sustancias peligrosas",{"$f":"SUM(C69:D69)","v":7},3,4]
["Apartado c) y d) art 2.3 Ley 27/2006",4,3,1]
["Total",{"$f":"SUM(B60:B70)","v":935},{"$f":"SUM(C60:C70)","v":311},{"$f":"SUM(D60:D70)","v":624}]
[]
[]
[]
[]
[]
[]
[]
[]
[]
[]
[]
[]
[]
[]
[]
[]
[]
[]
[]
[]
[]
[]
[]
[]
[]
[]
["Publicación: Servicio de Estudios, Análisis e Información. Secretaría General Técnica. Departamento de Agricultura, Ganadería y Medio Ambiente"]
["Fuente: Departamento de Agricultura, Ganaderia y Medio Ambiente"]

{"sheet":"AÑO_2013","index":10,"n_rows":98,"n_cols":4,"rows_kept":98,"cut":false,"hidden":false,"merged":[[7,0,7,6],[11,1,11,3],[19,0,19,6],[38,0,38,6]]}
[]
[]
[]
[]
[]
["Medio Ambiente"]
["Información Ambiental"]
["Solicitudes de información ambiental recibidas en el Departamento de Agricultura, Ganadería y Medio Ambiente. Año 2013"]
[]
["Solicitudes de información ambiental"]
[]
[null,"Nº solicitudes"]
["Tipo de solicitante","Total","Correo postal","Correo electrónico"]
["Administraciones públicas",{"$f":"SUM(C14:D14)","v":184},109,75]
["Empresas",{"$f":"SUM(C15:D15)","v":434},166,268]
["Asociaciones",{"$f":"SUM(C16:D16)","v":53},21,32]
["Ciudadanos",{"$f":"SUM(C17:D17)","v":371},45,326]
["Total",{"$f":"SUM(C18:D18)","v":1042},341,701]
[]
["Solicitudes de información ambiental por tipo de solicitante"]
[]
[]
[]
[]
[]
[]
[]
[]
[]
[]
[]
[]
[]
[]
[]
[]
[]
[]
["Solicitudes de información ambiental por medio de recepción"]
[]
[]
[]
[]
[]
[]
[]
[]
[]
[]
[]
[]
[]
[]
[]
[]
[]
["Solicitudes de información ambiental por área temática"]
[]
["Área temática","Total","Correo postal","Correo electrónico"]
["Aguas",{"$f":"SUM(C60:D60)","v":255},28,227]
["Atmósfera",{"$f":"SUM(C61:D61)","v":91},3,88]
["Diversidad biológica",205,100,105]
["Energía",0,0,0]
["Espacios naturales",286,137,149]
["Residuos",185,64,121]
["Ruido",3,0,3]
["Suelo",3,2,1]
["Sustancias peligrosas",0,0,0]
["Apartado c) y d) art 2.3 Ley 27/2006",14,7,7]
["Total",{"$f":"SUM(B60:B69)","v":1042},{"$f":"SUM(C60:C69)","v":341},{"$f":"SUM(D60:D69)","v":701}]
[]
[]
[]
[]
[]
[]
[]
[]
[]
[]
[]
[]
[]
[]
[]
[]
[]
[]
[]
[]
[]
[]
[]
[]
[]
[]
["Publicación: Servicio de Estudios, Análisis e Información. Secretaría General Técnica. Departamento de Agricultura, Ganadería y Medio Ambiente"]
["Fuente: Departamento de Agricultura, Ganaderia y Medio Ambiente"]

{"sheet":"AÑO_2012","index":11,"n_rows":98,"n_cols":4,"rows_kept":98,"cut":false,"hidden":false,"merged":[[7,0,7,6],[11,1,11,3],[19,0,19,6],[38,0,38,6]]}
[]
[]
[]
[]
[]
["Medio Ambiente"]
["Información Ambiental"]
["Solicitudes de información ambiental recibidas en el Departamento de Agricultura, Ganadería y Medio Ambiente. Año 2012"]
[]
["Solicitudes de información ambiental"]
[]
[null,"Nº solicitudes"]
["Tipo de solicitante","Total","Correo postal","Correo electrónico"]
["Administraciones públicas",189,95,94]
["Empresas",410,225,185]
["Asociaciones",82,31,51]
["Ciudadanos",550,182,368]
["Total",1231,533,698]
[]
["Solicitudes de información ambiental por tipo de solicitante"]
[]
[]
[]
[]
[]
[]
[]
[]
[]
[]
[]
[]
[]
[]
[]
[]
[]
[]
["Solicitudes de información ambiental por medio de recepción"]
[]
[]
[]
[]
[]
[]
[]
[]
[]
[]
[]
[]
[]
[]
[]
[]
[]
["Solicitudes de información ambiental por área temática"]
[]
["Área temática","Total","Correo postal","Correo electrónico"]
["Aguas",262,34,228]
["Atmósfera",30,5,25]
["Diversidad biológica",306,170,136]
["Energía",13,5,8]
["Espacios naturales",230,126,104]
["Residuos",91,5,86]
["Ruido",1,0,1]
["Suelo",13,6,7]
["Sustancias peligrosas",15,4,11]
["Apartado c) y d) art 2.3 Ley 27/2006",270,178,92]
["Total",1231,533,698]
[]
[]
[]
[]
[]
[]
[]
[]
[]
[]
[]
[]
[]
[]
[]
[]
[]
[]
[]
[]
[]
[]
[]
[]
[]
[]
["Publicación: Servicio de Estudios, Análisis e Información. Secretaría General Técnica. Departamento de Agricultura, Ganadería y Medio Ambiente"]
["Fuente: Departamento de Agricultura, Ganaderia y Medio Ambiente"]

{"sheet":"AÑO_2011","index":12,"n_rows":97,"n_cols":4,"rows_kept":97,"cut":false,"hidden":false,"merged":[[7,0,7,6],[11,1,11,3],[19,0,19,6],[38,0,38,6]]}
[]
[]
[]
[]
[]
["Medio Ambiente"]
["Información Ambiental"]
["Solicitudes de información ambiental recibidas en el Departamento de Agricultura, Ganadería y Medio Ambiente. Año 2011"]
[]
["Solicitudes de información ambiental"]
[]
[null,"Nº solicitudes"]
["Tipo de solicitante","Total","Correo postal","Correo electrónico"]
["Administraciones públicas",359,203,156]
["Empresas",671,296,375]
["Asociaciones",308,166,142]
["Ciudadanos",740,244,496]
["Total",2078,909,1169]
[]
["Solicitudes de información ambiental por tipo de solicitante"]
[]
[]
[]
[]
[]
[]
[]
[]
[]
[]
[]
[]
[]
[]
[]
[]
[]
[]
["Solicitudes de información ambiental por medio de recepción"]
[]
[]
[]
[]
[]
[]
[]
[]
[]
[]
[]
[]
[]
[]
[]
[]
[]
["Solicitudes de información ambiental por área temática"]
[]
["Área temática","Total","Correo postal","Correo electrónico"]
["Aguas",452,63,389]
["Atmósfera",38,9,29]
["Diversidad biológica",514,246,268]
["Energía",22,8,14]
["Espacios naturales",302,158,144]
["Residuos",177,31,146]
["Ruido",5,0,5]
["Suelo",66,62,4]
["Otras materias",502,332,170]
["Total",2078,909,1169]
[]
[]
[]
[]
[]
[]
[]
[]
[]
[]
[]
[]
[]
[]
[]
[]
[]
[]
[]
[]
[]
[]
[]
[]
[]
[]
["Publicación: Servicio de Estudios, Análisis e Información. Secretaría General Técnica. Departamento de Agricultura, Ganadería y Medio Ambiente"]
["Fuente: Departamento de Agricultura, Ganaderia y Medio Ambiente"]

{"sheet":"AÑO_2010","index":13,"n_rows":97,"n_cols":4,"rows_kept":97,"cut":false,"hidden":false,"merged":[[7,0,7,6],[11,1,11,3],[19,0,19,6],[38,0,38,6]]}
[]
[]
[]
[]
[]
["Medio Ambiente"]
["Información Ambiental"]
["Solicitudes de información ambiental recibidas en el Departamento de Medio Ambiente. Año 2010"]
[]
["Solicitudes de información ambiental"]
[]
[null,"Nº solicitudes"]
["Tipo de solicitante","Total","Correo postal","Correo electrónico"]
["Administraciones públicas",884,468,416]
["Empresas",1013,605,408]
["Asociaciones",641,171,470]
["Ciudadanos",722,495,227]
["Total",3260,1739,1521]
[]
["Solicitudes de información ambiental por tipo de solicitante"]
[]
[]
[]
[]
[]
[]
[]
[]
[]
[]
[]
[]
[]
[]
[]
[]
[]
[]
["Solicitudes de información ambiental por medio de recepción"]
[]
[]
[]
[]
[]
[]
[]
[]
[]
[]
[]
[]
[]
[]
[]
[]
[]
["Solicitudes de información ambiental por área temática"]
[]
["Área temática","Total","Correo postal","Correo electrónico"]
["Aguas",112,37,75]
["Atmósfera",276,45,231]
["Diversidad biológica",1192,752,440]
["Energía",59,15,44]
["Espacios naturales",703,363,340]
["Residuos",402,189,213]
["Ruido",12,3,9]
["Suelo",89,44,45]
["Otras materias",415,291,124]
["Total",3260,1739,1521]
[]
[]
[]
[]
[]
[]
[]
[]
[]
[]
[]
[]
[]
[]
[]
[]
[]
[]
[]
[]
[]
[]
[]
[]
[]
[]
["Publicación: Servicio de Estudios, Análisis e Información. Secretaría General Técnica. Departamento de Agricultura, Ganadería y Medio Ambiente"]
["Fuente: Departamento de Agricultura, Ganaderia y Medio Ambiente"]

{"sheet":"AÑO_2009","index":14,"n_rows":97,"n_cols":4,"rows_kept":97,"cut":false,"hidden":false,"merged":[[7,0,7,6],[11,1,11,3],[19,0,19,6],[38,0,38,6]]}
[]
[]
[]
[]
[]
["Medio Ambiente"]
["Información Ambiental"]
["Solicitudes de información ambiental recibidas en el Departamento de Medio Ambiente. Año 2009"]
[]
["Solicitudes de información ambiental"]
[]
[null,"Nº solicitudes"]
["Tipo de solicitante","Total","Correo postal","Correo electrónico"]
["Administraciones públicas",988,629,359]
["Empresas",1169,782,387]
["Asociaciones",1845,714,1131]
["Ciudadanos",2282,902,1380]
["Total",6284,3027,3257]
[]
["Solicitudes de información ambiental por tipo de solicitante"]
[]
[]
[]
[]
[]
[]
[]
[]
[]
[]
[]
[]
[]
[]
[]
[]
[]
[]
["Solicitudes de información ambiental por medio de recepción"]
[]
[]
[]
[]
[]
[]
[]
[]
[]
[]
[]
[]
[]
[]
[]
[]
[]
["Solicitudes de información ambiental por área temática"]
[]
["Área temática","Total","Correo postal","Correo electrónico"]
["Aguas",497,51,446]
["Atmósfera",650,493,157]
["Diversidad biológica",2252,1029,1223]
["Energía",3,1,2]
["Espacios naturales",1608,831,777]
["Residuos",669,304,365]
["Ruido",4,0,4]
["Suelo",296,282,14]
["Otras materias",305,36,269]
["Total",3260,1739,1521]
[]
[]
[]
[]
[]
[]
[]
[]
[]
[]
[]
[]
[]
[]
[]
[]
[]
[]
[]
[]
[]
[]
[]
[]
[]
[]
["Publicación: Servicio de Estudios, Análisis e Información. Secretaría General Técnica. Departamento de Agricultura, Ganadería y Medio Ambiente"]
["Fuente: Departamento de Agricultura, Ganaderia y Medio Ambiente"]